Cogmind - Beta 16.1 @@@ ROGUE MODE // 2026.04.05 @ 13:40:44 Player: WetterLettuce Result: Destroyed by G0-P7E(R) with Subdweller Beam Cannon Performance ------------- Evolutions (0) 0 Regions Visited (3) 600 Robots Destroyed (7) 35 Value Destroyed (191) 191 Prototype IDs (0) 0 Alien Tech Used (0) 0 Bonus (0) 0 TOTAL SCORE: 826 Bonus ------- None Cogmind --------- Core Integrity 0/250 Matter 261/300 Energy 100/100 System Corruption 0% Temperature Cool (9) Movement Core (200) Ox3 Location -10/Subcaves Parts ------- > --- POWER (1) -------- (None) > --- PROPULSION (2) --- (None) > --- UTILITY (2) ------ Improved Heat Sink Medium Storage Unit > --- WEAPON (2) ------- Light Assault Rifle > --- INVENTORY (10) --- Light Ion Engine Wheel Wheel Targeting Computer Light Armor Plating Light Assault Rifle Grenade Launcher Peak State ------------ > --- POWER ------------ Improved Ion Engine > --- PROPULSION ------- Light Treads Light Treads > --- UTILITY ---------- Improved Heat Sink Medium Storage Unit > --- WEAPON ----------- Particle Gun Heavy Assault Rifle > --- INVENTORY -------- Light Ion Engine Aluminum Leg Wheel Wheel Light Armor Plating Beam Rifle Light Assault Rifle Light Assault Rifle Light Assault Rifle Grenade Launcher [Rating: 13] Favorites ----------- Power Ion Engine Engine Ion Engine Propulsion Aluminum Leg Treads Light Treads Leg Aluminum Leg Wheel Wheel Utility Improved Heat Sink Device Improved Heat Sink Storage Small Storage Unit Weapon Particle Gun Energy Gun Particle Gun Ballistic Gun Light Assault Rifle Build | -11 -10 -10 -10 ------- Run | Yrd Mat Min Sub Slots Evolved . | . . . . Power . | . . . . Propulsion . | . . . . Utility . | . . . . Weapon . | . . . . Parts Attached 18 | 6 2 7 3 Power 2 | 1 . 1 . Engine 2 | 1 . 1 . Core . | . . . . Reactor . | . . . . Propulsion 6 | 2 . 4 . Treads 2 | . . 2 . Leg 3 | 2 . 1 . Wheel 1 | . . 1 . Hover . | . . . . Flight . | . . . . Utility 3 | 1 1 1 . Device 1 | . 1 . . Storage 2 | 1 . 1 . Processor . | . . . . Hackware . | . . . . Protection . | . . . . Artifact . | . . . . Weapon 7 | 2 1 1 3 Energy Gun 2 | . 1 . 1 Energy Cannon . | . . . . Ballistic Gun 5 | 2 . 1 2 Ballistic Cannon . | . . . . Launcher . | . . . . Special Weapon . | . . . . Impact Weapon . | . . . . Slashing Weapon . | . . . . Piercing Weapon . | . . . . Special Melee Weapon . | . . . . Unidentified Prototypes . | . . . . Parts Lost 9 | . 1 1 7 Power 1 | . . . 1 Propulsion 3 | . . 1 2 Utility . | . . . . Weapon 5 | . 1 . 4 Highest Loss Streak 7 | . 1 1 7 To Critical Strikes . | . . . . Average Backups 6 | 1 4 7 8 Power . | . 1 1 1 Propulsion 2 | . 2 2 2 Utility 1 | . . 1 2 Weapon 2 | . . 2 3 Tool/Special . | . . . . Unused Backups 6 | . . 1 5 Power 1 | . . . 1 Propulsion 1 | . . . 1 Utility 2 | . . . 2 Weapon 2 | . . 1 1 Tool/Special . | . . . . Average Slot Usage (%) 95 | . 90 99 84 Engine 13 | . 14 14 8 Treads 8 | . . 9 22 Leg 17 | . 28 18 . Device 12 | . 6 14 14 Storage 14 | . 14 14 14 Energy Gun 11 | . 6 14 8 Ballistic Gun 15 | . 21 14 15 Peak Build Rating 13 | 6 10 13 13 Average Rating 9 | 4 7 11 9 On Entrance 7 | . 6 10 13 Avg Prop Armor Cover (%) . | . . . . Naked Turns . | . . . . Heaviest Build 24 | 13 15 24 24 Greatest Support 40 | 20 20 40 40 Greatest Overweight (x) 4 | . . 2 4 Average Overweight (x) . | . . . . Largest Inventory Capacity 10 | 8 8 10 10 Average Capacity 8 | 6 8 8 10 Most Carried 10 | 3 6 10 10 Average Carried 6 | 1 4 7 8 Final Capacity 10 | 8 8 10 10 Final Carried 10 | 3 6 10 7 Class Distribution -------------------- 69% | Mutant 30% | Scavenger-Mutant Dominant Class ---------------- Mutant | -10/Materials Mutant | -10/Mines Mutant | -10/Subcaves Resources | -11 -10 -10 -10 ----------- Run | Yrd Mat Min Sub Matter Collected 411 | 206 78 127 . Remotely . | . . . . Salvage Created 199 | . 78 43 78 Parts 18 | . 4 6 8 Haulers Intercepted . | . . . . Recyclers Shooed . | . . . . Parts Field Recycled . | . . . . Retrieved Matter . | . . . . Parts Self-Destructed . | . . . . Prevented . | . . . . Parts Restored . | . . . . Kills | -11 -10 -10 -10 ------- Run | Yrd Mat Min Sub Combat Hostiles Destroyed 7 | . 2 3 2 Guns 7 | . 2 3 2 Classes Destroyed 3 | . 1 1 1 Swarmer 3 | . . 3 . Grunt 2 | . 2 . . Subdweller 2 | . . . 2 Best Kill Streak 3 | . 2 3 1 Combat Bots Only 3 | . 2 3 1 Max Kills in Single Turn 2 | . 1 2 1 Gunslinging 1 | . . 1 . Exploded . | . . . . Melee . | . . . . Uniques/NPCs Destroyed . | . . . . Combat | -11 -10 -10 -10 -------- Run | Yrd Mat Min Sub Hostile Shots Fired 93 | . 29 16 48 Missed 28 | . 10 6 12 Hits 65 | . 19 10 36 Projectile 65 | . 19 10 36 Critical Strikes 3 | . . 2 1 Damage Taken 1291 | . 250 100 941 Core 270 | . 42 9 219 Absorbed by Shields . | . . . . Core Remaining (%) 100 | 100 . . . Volleys Fired 41 | . 17 5 19 Largest 2 | . 2 2 2 Hottest 88 | . 40 85 88 Shots Fired 75 | . 30 10 35 Gun 75 | . 30 10 35 Cannon . | . . . . Launcher . | . . . . Special . | . . . . Kinetic 61 | . 30 5 26 Thermal 14 | . . 5 9 Explosive . | . . . . Electromagnetic . | . . . . Robot Hit Streak 19 | . 7 4 19 Robot Miss Streak 3 | . 3 2 2 Penetration Max . | . . . . Secondary Targets 3 | . . 2 1 Max Gunslinging Chain 1 | . . 1 1 Shots Hit Robots 57 | . 21 6 30 Core Hits 14 | . 6 3 5 Critical Kills . | . . . . Critical Parts Destroyed . | . . . . Critical Strikes . | . . . . Melee Attacks . | . . . . Impact . | . . . . Slashing . | . . . . Piercing . | . . . . Sneak Attacks . | . . . . Combat Hostiles . | . . . . Follow-up Attacks . | . . . . Damage Inflicted 607 | . 200 72 335 Guns 607 | . 200 72 335 Cannons . | . . . . Explosions . | . . . . Melee . | . . . . Ramming . | . . . . Kinetic 440 | . 200 26 214 Thermal 167 | . . 46 121 Explosive . | . . . . Electromagnetic . | . . . . Impact . | . . . . Slashing . | . . . . Piercing . | . . . . Highest Corruption . | . . . . Average Corruption . | . . . . Corruption Purged . | . . . . Corruption Blocked . | . . . . Overload Shots . | . . . . Overflow Damage . | . . . . Projectiles . | . . . . Explosions . | . . . . Melee . | . . . . Knockbacks . | . . . . Impact . | . . . . Kinetic . | . . . . Secondary . | . . . . Self-Inflicted Damage . | . . . . Shots . | . . . . Rammed . | . . . . Targets Rammed . | . . . . Kicked . | . . . . Crushed . | . . . . Highest Temperature 230 | . 25 32 230 Average Temperature 29 | . 12 14 118 Received Heat Transfer 671 | . 141 36 494 Siege Activations . | . . . . Martial Activations . | . . . . Shielding Activations . | . . . . Robots Disrupted . | . . . . Combat Hostiles . | . . . . Robots Corrupted . | . . . . Combat Hostiles . | . . . . Parts Fried . | . . . . Impact Corruptions . | . . . . Robots Melted . | . . . . Combat Hostiles . | . . . . Parts Melted . | . . . . Heat Transferred 407 | . . 111 296 Parts Sabotaged . | . . . . Parts Stolen . | . . . . Parts Stripped . | . . . . Power Chain Reactions . | . . . . Alert | -11 -10 -10 -10 ------- Run | Yrd Mat Min Sub Maximum Alert Level . | . . . . Low Security (%) 100 | 100 100 100 . Level 1 . | . . . . Level 2 . | . . . . Level 3 . | . . . . Level 4 . | . . . . Level 5 . | . . . . High Security . | . . . . Max Security . | . . . . Peak Influence 70 | . 50 70 . Initial 7 | . . 7 . Average 9 | . 16 8 . Influence Increases 135 | . 65 70 . Destroy 0b10 Robot/C 100 | . 40 60 . Destroy Leader 20 | . 10 10 . Successful Hack 15 | . 15 . . Influence Decreases 135 | . 45 90 . Entered New Map 13 | . . 13 . Time Decay 112 | . 45 67 . Lost Part 10 | . . 10 . Squads Dispatched 1 | . 1 . . Investigation . | . . . . Extermination . | . . . . Reinforcement 1 | . 1 . . Assault . | . . . . Garrison . | . . . . Intercept . | . . . . Searches Triggered . | . . . . Construction Impeded . | . . . . Haulers Reinforced . | . . . . Active Scanning Responses . | . . . . Cargo Convoy Interrupts . | . . . . Stealth | -11 -10 -10 -10 --------- Run | Yrd Mat Min Sub Distress Signals . | . . . . Communications Jammed . | . . . . Distress Signals . | . . . . Times Spotted 12 | . 5 4 3 Peak Tracking Total 3 | . 2 2 3 Tactical Retreats . | . . . . Traps | -11 -10 -10 -10 ------- Run | Yrd Mat Min Sub Traps Triggered . | . . . . Indirectly . | . . . . Trap Hack Attempts . | . . . . Triggered . | . . . . Disarmed . | . . . . Reprogrammed . | . . . . Reused . | . . . . Traps Extracted . | . . . . Installed . | . . . . Triggered . | . . . . Machines | -11 -10 -10 -10 ---------- Run | Yrd Mat Min Sub Machines Disabled . | . . . . Max in Single Turn . | . . . . Machines Repaired . | . . . . Machines Dismantled . | . . . . Machines Sabotaged . | . . . . Overloaded Fab Kills . | . . . . Hacking | -11 -10 -10 -10 --------- Run | Yrd Mat Min Sub Machines Accessed 2 | . 2 . . Terminals 2 | . 2 . . Fabricators . | . . . . Repair Stations . | . . . . Recycling Units . | . . . . Scanalyzers . | . . . . Garrison Access . | . . . . Total Hacks 6 | . 6 . . Successful 3 | . 3 . . Failed 3 | . 3 . . Catastrophic . | . . . . Database Lockouts . | . . . . Manual 4 | . 4 . . Terminals 6 | . 6 . . Fabricators . | . . . . Repair Stations . | . . . . Recycling Units . | . . . . Scanalyzers . | . . . . Garrison Access . | . . . . Terminal Hacks 1 | . 1 . . Branch Access Points 1 | . 1 . . Fabricator Hacks . | . . . . Repair Station Hacks . | . . . . Recycling Unit Hacks . | . . . . Scanalyzer . | . . . . Garrison Access Hacks . | . . . . Unauthorized Hacks 2 | . 2 . . Terminals 2 | . 2 . . Botnet 2 | . 2 . . Fabricators . | . . . . Repair Stations . | . . . . Recycling Units . | . . . . Scanalyzers . | . . . . Garrison Access . | . . . . Data Cores Recovered . | . . . . Used . | . . . . Hacking Detections 1 | . 1 . . Full Trace Events . | . . . . Feedback Events . | . . . . Feedback Blocked . | . . . . Robot Schematics Acquired . | . . . . Robots Built . | . . . . Authchips . | . . . . Time . | . . . . Total Robot Build Rating . | . . . . Part Schematics Acquired . | . . . . Parts Built . | . . . . Authchips . | . . . . Time . | . . . . Total Part Build Rating . | . . . . Part Studies Acquired . | . . . . Parts Repaired . | . . . . Time . | . . . . Parts Recycled . | . . . . Recycled Matter . | . . . . Retrieved Matter . | . . . . Retrieved Components . | . . . . Parts Scanalyzed . | . . . . Part Schematics Acquired . | . . . . Parts Damaged . | . . . . Bothacking | -11 -10 -10 -10 ------------ Run | Yrd Mat Min Sub Used RIF Installer . | . . . . Robots Hacked . | . . . . Non-combat . | . . . . Combat . | . . . . Robot Hacks Applied . | . . . . Relay Couplers Released . | . . . . Fabnet Peak Effective % . | . . . . Robots Rewired . | . . . . Allies Hacked . | . . . . Hacks Repelled . | . . . . Allies | -11 -10 -10 -10 -------- Run | Yrd Mat Min Sub Total Allies . | . . . . Largest Group . | . . . . Highest-Rated Group . | . . . . Highest-Rated Ally . | . . . . Total Orders . | . . . . Ally Attacks . | . . . . Total Damage . | . . . . Kills . | . . . . Allies Corrupted . | . . . . Allies Melted . | . . . . Intel | -11 -10 -10 -10 ------- Run | Yrd Mat Min Sub Active Infowar (turns) . | . . . . Robot Analysis Total . | . . . . Derelict Logs Recovered . | . . . . Drone Launches . | . . . . Drone Recoveries . | . . . . Exploration | -11 -10 -10 -10 ------------- Run | Yrd Mat Min Sub Turns Passed 775 | 62 150 475 88 Spaces Moved 458 | 46 79 314 19 Core 9 | 6 . . 3 Treads 103 | . . 87 16 Legs 344 | 40 79 225 . Wheels 2 | . . 2 . Hover . | . . . . Flight . | . . . . Fastest Speed 50 | 50 120 110 160 Average Speed 129 | 110 120 132 168 Slowest Speed 250 | 120 120 240 250 Overloaded Moves . | . . . . Propulsion Burnouts . | . . . . Robots Hopped . | . . . . Potential Cave-ins . | . . . . Cave-ins Triggered . | . . . . Exploration Rate (%) 24 | 4 24 67 4 Regions Visited 3 Branch Regions 2 Pre-discovered Areas 1 | . . 1 . Known Exits Taken 1 | . 1 . . Unknown Exits Taken 2 | 1 . 1 . Scrap Searched . | . . . . Spaces Dug . | . . . . Terrain Destroyed . | . . . . Melee . | . . . . Projectile . | . . . . AOE . | . . . . Terrain Rammed . | . . . . Walls Destroyed . | . . . . Machines Disabled . | . . . . Actions | -11 -10 -10 -10 --------- Run | Yrd Mat Min Sub Total 568 | 54 106 365 43 Wait 34 | . 6 26 2 Move 455 | 45 78 313 19 Hop . | . . . . Pick Up 13 | 3 3 7 . Fast Attach 9 | 6 2 1 . Attach 4 | . . 1 3 Detach . | . . . . Swap 6 | . . 6 . Drop 6 | . . 6 . Fire 41 | . 17 5 19 Melee . | . . . . Ram . | . . . . Kick . | . . . . Crush . | . . . . Escape Stasis . | . . . . Rewire . | . . . . Trap . | . . . . Miscellaneous . | . . . . Route ------- -11/Scrapyard -10/Materials (discovered 2 exits: *Min x2) -10/Mines (discovered 2 exits: [*Mat] / [*Sub]) -10/Subcaves History --------- Turn | Location | Event 4 | -11/Scrapyard | Discovered new exit (range 16) 63 | -11/Scrapyard | Entered Materials 189 | -10/Materials | Identified exit to Mines 213 | -10/Materials | Entered Mines 222 | -10/Mines | Discovered new exit (range 8) 302 | -10/Mines | Build established: Mutant 319 | -10/Mines | Learned location of Storage (-7) 489 | -10/Mines | Joined a pair of Derelicts in attacking an 0b10 outpost 685 | -10/Mines | Discovered new exit (range 4) 688 | -10/Mines | Entered Subcaves 726 | -10/Subcaves | Core integrity fell below 50% 758 | -10/Subcaves | Core integrity fell below 20% 776 | -10/Subcaves | Destroyed by G0-P7E(R) with Subdweller Beam Cannon Last Messages --------------- Particle Gun destroyed. VB-F7D(R) destroyed. Switching to secondary target: G0-P7E(R). Imp. Ion Engine destroyed. Subatomizers dissect the Sub. Monowheel. Hvy. Assault Rifle destroyed. G0-P7E(R) affixes Scrap Shield Fragment to Scrap Shield. Beam Rifle destroyed. Subatomizers dissect the Sub. Monowheel. Lgt. Treads destroyed. Critical hit (Meltdown: +260). K2-VW2(R) destroyed. Subatomizers dissect the Sub. Monowheel. G0-P7E(R) affixes Scrap Shield Fragment to Scrap Shield. Lgt. Assault Rifle destroyed. G0-P7E(R) affixes Scrap Shield Fragment to Scrap Shield. Subatomizers dissect the Sub. Monowheel. Map ----- +----------------------------------------------------+ | ?????????????????????????????????????????????????? | | ?????????????????????????????????????????????????? | | ?????????????????????????????????????????????????? | | ?????????????????????????????????????????????????? | | ?????????????????????????????????????????????????? | | ??????????????????????????##??####???????????????? | | ????????????????????????### ### #???????????????? | | ????????????????????????" ???????????????? | | ??????????????????????????" ???????????????? | | ???????????????????????????# #???????????????? | | ????????????????????????????# ##?###??????????? | | ?????????????????????????????# ## ####???????? | | ??????????????????????????????# #???????? | | ??????????????????????????????## ##???????? | | ??????????????????????????????## ## #????????? | | ?????????????????????????????## #???##????????? | | ?????????????????????????????# ##?????????????? | | ?????????????? ?????????????## ##?????????????? | | ???????????????"????????##### % ##????????????? | | ???????????????? ??????# #????????????? | | ?????????????????# ?????# % #?????????? | | ?????????????????# ###?## ## #% % #?????????? | | ???????????????????# ###R=## ## ##?????????? | | ?????????????""""### [&&### #? #??????????? | | ?????????????# " %=%#?# #? #??????????? | | ?????????????# " !@##?# #? #??????????? | | ?????????????## " % ;#? ?# #??????????? | | ??????????????## ## # ?? #??????????? | | ??????????????# ### ??# # ## %#??####??????????? | | ??????????????????#??? ##? ? ????????????????? | | ?????????????????????## ????# #????????????????? | | ??????????????????????# ????? ????????????????? | | ??????????????????????# ?????# #????????????????? | | ?????????????????????? ????????????????????????? | | ?????????????????????? ????????????????????????? | | ????????????????????? ????????????????????????? | | ?????????????????????## ????????????????????????? | | ??????????????????????##?????????????????????????? | | ?????????????????????????????????????????????????? | | ?????????????????????????????????????????????????? | | ?????????????????????????????????????????????????? | | ?????????????????????????????????????????????????? | | ?????????????????????????????????????????????????? | | ?????????????????????????????????????????????????? | | ?????????????????????????????????????????????????? | | ?????????????????????????????????????????????????? | | ?????????????????????????????????????????????????? | | ?????????????????????????????????????????????????? | | ?????????????????????????????????????????????????? | | ?????????????????????????????????????????????????? | +----------------------------------------------------+ Best States ------------- Heat Dissipation 39 Energy Generation 12 Energy Capacity 265 Matter Stores 300 Matter Capacity 300 Sight Range 16 Terrain Scan Density 10 Evasion (%) 55 Recoil Reduction 2 Item Schematics ----------------- None Robot Schematics ------------------ None Fabricated ------------ Nothing Repaired ---------- Nothing Studied --------- None Alien Tech Used ----------------- None Achievements -------------- None Challenges ------------ None Game ------ Seed DiametricFluxReconfigurator Manual? 0 Play Time 00:06:11 Cumulative 107.6 hours Start 2026.04.05 @ 13:35:18 End 2026.04.05 @ 13:40:44 Sessions 1 Manual Loads 0 Difficulty Rogue Special Mode None Game No. 127 Rogue 127 Adventurer 0 Explorer 0 Win Type - Total 1 Types 1/0/0/0/0/0/0/0/0/0 Lore% 74 Gallery% 54 Achievement% 39 Wizard Run 0 Options --------- Layout 1 ASCII 0 Keyboard 0 Movement Mouse Keybinds 0 Fullscreen 2 Font 24/Smallcaps Map View 50x35 Zoom Use 0% Tactical HUD 0 Map Filters NONE Filters NONE Steam 1 RUN: bf48538b-ed37-41b1-8856-f79934104e9d